bitfinex-derivatives/quotes_BTCF0:USTF0_20240923
["timestamp","ask_amount","ask_price","bid_price","bid_amount"]
[1727051410619,0.28081386,63234.0,63233.0,0.08006]
[1727051410910,0.50778276,63234.0,63227.0,0.00906434]
[1727051411116,0.48726772,63233.0,63232.0,0.158124]
[1727051411302,0.48726772,63233.0,63232.0,0.288124]
[1727051411497,0.36564575,63233.0,63232.0,0.288124]
[1727051411702,0.36564575,63233.0,63232.0,0.079062]
[1727051411703,0.63601475,63233.0,63232.0,0.079062]
[1727051412308,0.99681475,63233.0,63232.0,0.079062]
[1727051412506,0.63601475,63233.0,63232.0,0.079062]
[1727051412702,0.73641765,63233.0,63230.0,0.26616001]
[1727051412906,0.48726772,63232.0,63231.0,0.158126]
[1727051414111,0.46349181,63232.0,63231.0,0.158126]
[1727051414507,0.46749181,63232.0,63231.0,0.079063]
[1727051414918,0.46749181,63232.0,63231.0,0.158126]
[1727051415712,0.46749181,63232.0,63231.0,0.079063]
[1727051416019,0.61623884,63232.0,63231.0,0.158126]
[1727051416599,0.61623884,63232.0,63231.0,0.367189]
[1727051416916,0.61623884,63232.0,63231.0,0.288126]
[1727051417416,0.46749181,63232.0,63231.0,0.288126]
[1727051417817,0.01051504,63234.0,63231.0,0.11405781]
[1727051418111,0.00764985,63236.0,63235.0,0.158116]
[1727051418112,0.1399657,63236.0,63235.0,0.158116]
[1727051418313,0.1399657,63236.0,63235.0,0.288116]
[1727051418516,0.00764985,63236.0,63235.0,0.288116]
[1727051418703,0.00764985,63236.0,63235.0,0.448716]
[1727051419404,0.00764985,63236.0,63235.0,0.209058]
[1727051419805,0.00764985,63236.0,63235.0,0.210058]
[1727051420109,0.00764985,63236.0,63235.0,0.080058]
[1727051420314,0.17154985,63236.0,63235.0,0.080058]
[1727051420512,0.17254985,63236.0,63235.0,0.080058]
[1727051422107,1.60774985,63236.0,63225.0,0.04736144]
[1727051422307,1.60774985,63236.0,63211.0,0.0914164]
[1727051422308,0.079073,63223.0,63218.0,0.079078]
[1727051422501,0.09352636,63235.0,63213.0,0.079085]
[1727051422502,0.3608,63219.0,63213.0,0.079085]
[1727051422705,0.13,63217.0,63214.0,0.079084]
[1727051423111,0.3608,63219.0,63214.0,0.079084]
[1727051423513,0.3608,63219.0,63218.0,0.014]
[1727051424113,0.3608,63219.0,63214.0,0.079084]
[1727051424114,0.001,63217.0,63214.0,0.089084]
[1727051424720,0.3608,63219.0,63215.0,0.079082]
[1727051425508,0.3608,63219.0,63214.0,0.13]
[1727051425718,0.3608,63219.0,63202.0,0.3407]
[1727051425719,0.0683039,63218.0,63202.0,0.3407]
[1727051426017,0.3608,63210.0,63209.0,0.07909]
[1727051426203,0.48912046,63210.0,63209.0,0.07909]
[1727051426723,0.48912046,63210.0,63201.0,0.00237336]
[1727051427017,0.3608,63202.0,63201.0,0.08147336]
[1727051427204,0.48016202,63202.0,63201.0,0.08147336]
[1727051427527,0.48016202,63202.0,63201.0,0.0791]
[1727051427812,0.5280162,63202.0,63201.0,0.0791]
[1727051428012,0.5280162,63202.0,63201.0,0.0931]
[1727051428407,0.53683231,63202.0,63201.0,0.0931]
[1727051429011,0.53683231,63202.0,63201.0,0.014]
[1727051429212,0.53783231,63202.0,63201.0,0.016]
[1727051429420,0.5290162,63202.0,63201.0,0.0951]
[1727051429818,0.700819,63202.0,63201.0,0.0951]
[1727051430415,0.5300162,63202.0,63201.0,0.0951]
[1727051432012,0.6091152,63202.0,63201.0,0.016]
[1727051432316,0.68318429,63202.0,63201.0,0.016]
[1727051432621,0.68318429,63202.0,63189.0,0.079115]
[1727051432622,0.079109,63195.0,63189.0,0.079115]
[1727051432826,0.8516,63190.0,63189.0,0.079115]
[1727051433012,1.11824525,63190.0,63181.0,0.12604387]
[1727051433319,0.13,63185.0,63181.0,0.12604387]
[1727051433508,0.20350585,63185.0,63181.0,0.12604387]
[1727051433708,0.15509468,63186.0,63184.0,0.18603694]
[1727051434024,0.89340412,63190.0,63184.0,0.18603694]
[1727051434025,0.13,63187.0,63184.0,0.10691694]
[1727051434228,0.13,63187.0,63185.0,0.07912]
[1727051434538,0.13,63187.0,63184.0,0.10691694]
[1727051434539,0.07912,63186.0,63184.0,0.10691694]
[1727051434714,1.0748,63186.0,63181.0,0.12604387]
[1727051435019,1.0748,63186.0,63165.0,0.0008]
[1727051435020,0.079133,63176.0,63167.0,0.079142]
[1727051435212,0.4908,63172.0,63167.0,0.079142]
[1727051436813,0.49967504,63172.0,63167.0,0.079142]
[1727051437021,0.3608,63171.0,63168.0,0.079141]
[1727051437519,0.3608,63171.0,63169.0,0.209139]
[1727051437721,0.001,63172.0,63171.0,0.079138]
[1727051437919,0.3618,63172.0,63171.0,0.079138]
[1727051438122,0.3608,63179.0,63178.0,0.079129]
[1727051438319,0.3608,63179.0,63178.0,0.209129]
[1727051438813,0.3608,63179.0,63178.0,0.079129]
[1727051440627,0.3608,63179.0,63178.0,0.080129]
[1727051440628,0.3628,63179.0,63178.0,0.080129]
[1727051441015,0.3618,63179.0,63178.0,0.080129]
[1727051441318,0.3628,63179.0,63178.0,0.080129]
[1727051442216,0.3628,63179.0,63178.0,0.081129]
[1727051443315,0.3628,63179.0,63178.0,0.087129]
[1727051443827,0.3618,63179.0,63178.0,0.081129]
[1727051444021,0.3628,63179.0,63178.0,0.086129]
[1727051444722,0.3618,63179.0,63161.0,0.07915]
[1727051445028,0.3608,63166.0,63165.0,0.079145]
[1727051445721,0.50610001,63178.0,63161.0,0.42275]
[1727051445722,0.3608,63172.0,63171.0,0.079138]
[1727051446821,0.33250001,63178.0,63177.0,0.07913]
[1727051447018,0.3313,63178.0,63177.0,0.07913]
[1727051448214,0.410429,63178.0,63173.0,0.079135]
[1727051448525,0.410429,63178.0,63174.0,0.079134]
[1727051448526,0.411429,63178.0,63174.0,0.079134]
[1727051448820,0.411429,63178.0,63157.0,0.21806144]
[1727051448821,0.3608,63174.0,63162.0,0.079149]
[1727051449014,0.3608,63163.0,63162.0,0.079149]
[1727051449417,0.4908,63163.0,63162.0,0.079149]
[1727051449818,1.56576,63163.0,63159.0,0.079152]
[1727051450025,0.3487,63162.0,63159.0,0.079152]
[1727051450315,1.42366,63162.0,63155.0,0.079158]
[1727051450530,0.4908,63156.0,63155.0,0.079158]
[1727051450714,0.4908,63156.0,63150.0,0.079163]
[1727051450914,0.13,63151.0,63150.0,0.079163]
[1727051451127,0.13,63151.0,63145.0,0.07917]
[1727051451425,0.3608,63154.0,63145.0,0.07917]
[1727051451426,0.4908,63146.0,63145.0,0.07917]
[1727051452327,0.3608,63146.0,63145.0,0.07917]
[1727051453522,1.56588,63146.0,63139.0,0.079177]
[1727051453719,0.4908,63140.0,63139.0,0.079177]
[1727051454727,0.4908,63140.0,63126.0,0.32917576]
[1727051454728,1.56592,63140.0,63126.0,0.04736144]
[1727051454914,1.56592,63140.0,63111.0,0.079213]
[1727051454915,0.079183,63135.0,63128.0,0.06998101]
[1727051455117,0.8516,63129.0,63128.0,0.06998101]
[1727051456127,0.8516,63129.0,63114.0,0.04736144]
[1727051456425,0.3608,63119.0,63113.0,0.04736144]
[1727051456818,0.3608,63119.0,63118.0,0.079204]
[1727051457019,0.4908,63119.0,63118.0,0.079204]
[1727051457619,0.4918,63119.0,63118.0,0.079204]
[1727051457818,0.5026257,63119.0,63118.0,0.079204]
[1727051458725,0.5036257,63119.0,63118.0,0.079204]
[1727051459141,0.9789057,63119.0,63113.0,0.07921]
[1727051459320,0.3608,63116.0,63113.0,0.07921]
[1727051459631,0.13,63114.0,63113.0,0.07921]
[1727051459831,0.3608,63116.0,63115.0,0.079208]
[1727051460720,0.3628,63119.0,63118.0,0.079204]
[1727051460920,0.3628,63119.0,63118.0,0.209204]
[1727051461234,0.30632802,63119.0,63118.0,0.209204]
[1727051461431,0.008,63138.0,63125.0,0.079196]
[1727051461727,0.13,63140.0,63139.0,0.079178]
[1727051461929,0.13,63140.0,63119.0,0.69987646]
[1727051462122,0.13,63132.0,63131.0,0.079188]
[1727051463233,0.209187,63132.0,63128.0,0.079191]
[1727051463433,0.13,63129.0,63128.0,0.079191]
[1727051465136,0.131,63129.0,63128.0,0.079191]
[1727051465533,0.132,63129.0,63128.0,0.081191]
[1727051466027,0.002,63129.0,63128.0,0.081191]
[1727051466222,0.002,63129.0,63128.0,0.211191]
[1727051466425,0.3608,63133.0,63132.0,0.079187]
[1727051466625,0.00237745,63142.0,63132.0,0.079187]
[1727051467029,0.00237745,63142.0,63140.0,0.079177]
[1727051467241,0.4908,63141.0,63140.0,0.079177]
[1727051468037,0.4918,63141.0,63140.0,0.079177]
[1727051468247,1.56792,63141.0,63140.0,0.001]
[1727051468430,1.56792,63141.0,63124.0,0.3268]
[1727051468636,0.13,63127.0,63124.0,0.3268]
[1727051468827,0.079196,63125.0,63120.0,0.079201]
[1727051469032,0.079196,63125.0,63119.0,0.00237646]
[1727051469033,0.13,63121.0,63119.0,0.00237646]
[1727051469337,0.13,63121.0,63120.0,0.079202]
[1727051469733,0.13,63121.0,63119.0,0.00237646]
[1727051470245,0.131,63121.0,63119.0,0.00337646]
[1727051470940,0.131,63121.0,63120.0,0.079202]
[1727051471138,0.131,63121.0,63119.0,0.001]
[1727051471342,0.210201,63121.0,63119.0,0.001]
[1727051471527,0.079202,63120.0,63119.0,0.003]
[1727051472427,0.744482,63120.0,63119.0,0.003]
[1727051472632,0.079205,63118.0,63111.0,0.079213]
[1727051472834,0.5508,63112.0,63111.0,0.079213]
[1727051473036,0.3608,63112.0,63111.0,0.079213]
[1727051473939,0.002,63120.0,63119.0,0.079203]
[1727051474430,0.3608,63122.0,63121.0,0.079201]
[1727051476353,0.5508,63122.0,63121.0,0.079201]
[1727051476852,0.3608,63122.0,63121.0,0.079201]
[1727051477053,0.3608,63130.0,63129.0,0.079191]
[1727051478152,0.5518,63130.0,63129.0,0.079191]
[1727051478656,0.5528,63130.0,63129.0,0.079191]
[1727051478956,0.73467014,63130.0,63121.0,0.079201]
[1727051479152,0.09310554,63123.0,63122.0,0.079199]
[1727051479350,0.02567734,63123.0,63122.0,0.079199]
[1727051479545,0.18210906,63127.0,63126.0,0.079194]
[1727051479760,0.18210905,63127.0,63126.0,0.079194]
[1727051480063,0.07341314,63127.0,63126.0,0.079194]
[1727051480360,0.12740759,63127.0,63126.0,0.079194]
[1727051480558,0.10172959,63127.0,63126.0,0.079194]
[1727051480868,0.12398139,63128.0,63127.0,0.079193]
[1727051481053,0.02567813,63128.0,63127.0,0.158386]
[1727051481262,0.001,63130.0,63129.0,0.158382]
[1727051481460,0.07311842,63130.0,63129.0,0.158382]
[1727051481758,0.10879589,63136.0,63130.0,0.079189]
[1727051481968,0.10879589,63136.0,63135.0,0.079183]
[1727051482153,0.07329662,63136.0,63129.0,0.3608]
[1727051482358,0.07329662,63135.0,63132.0,0.079187]
[1727051482673,0.07329662,63134.0,63133.0,0.256485]
[1727051482852,0.10879589,63139.0,63138.0,0.079179]
[1727051483060,0.10879589,63140.0,63139.0,0.079178]
[1727051483259,0.12876984,63140.0,63133.0,0.1773]
[1727051483449,0.55433745,63142.0,63133.0,0.1773]
[1727051483450,0.10892768,63138.0,63137.0,0.43998]
[1727051483655,0.18231501,63138.0,63137.0,0.07918]
[1727051483855,0.10892768,63139.0,63138.0,0.079179]
[1727051484055,0.05089535,63139.0,63138.0,0.079179]
[1727051484265,0.0765662,63139.0,63138.0,0.079179]
[1727051484460,0.18546649,63139.0,63138.0,0.079179]
[1727051484766,0.18246826,63139.0,63138.0,0.158358]
[1727051485066,0.48528553,63142.0,63139.0,0.079178]
[1727051485067,0.10890206,63141.0,63139.0,0.079178]
[1727051485262,0.00108,63142.0,63141.0,0.15835]
[1727051485562,0.32947906,63153.0,63145.0,0.07917]
[1727051485563,0.10890206,63147.0,63145.0,0.07917]
[1727051485770,0.10890206,63147.0,63146.0,0.079169]
[1727051485969,0.00120001,63155.0,63154.0,0.079159]
[1727051486466,0.19,63162.0,63161.0,0.07915]
[1727051487360,0.3608,63163.0,63162.0,0.079149]
[1727051487567,0.01089061,63167.0,63166.0,0.079144]
[1727051487768,0.00237542,63172.0,63171.0,0.079138]
[1727051489180,0.00337542,63172.0,63171.0,0.086138]
[1727051490164,0.00437542,63172.0,63171.0,0.086138]
[1727051491062,0.18262,63178.0,63177.0,0.07913]
[1727051492269,0.18262,63178.0,63177.0,0.08213]
[1727051493694,0.01097972,63182.0,63181.0,0.079125]
[1727051493875,0.25943459,63182.0,63165.0,0.39533911]
[1727051494063,0.91268,63183.0,63177.0,0.19]
[1727051494064,0.17973682,63181.0,63177.0,0.19]
[1727051494381,0.12376695,63185.0,63178.0,0.5321]
[1727051494580,0.3608,63190.0,63182.0,0.19]
[1727051494581,0.36200001,63190.0,63182.0,0.19]
[1727051494770,0.36200001,63190.0,63189.0,0.079115]
[1727051495164,0.40611228,63190.0,63189.0,0.079115]
[1727051495478,0.00237464,63192.0,63189.0,0.079115]
[1727051495479,0.00237464,63192.0,63189.0,1.153875]
[1727051495673,0.09269662,63191.0,63190.0,0.439914]
[1727051495871,0.00237464,63192.0,63191.0,0.079113]
[1727051495872,0.09507126,63192.0,63191.0,0.079113]
[1727051496271,0.00237464,63192.0,63191.0,0.079113]
[1727051497780,0.00237464,63192.0,63191.0,0.082113]
[1727051500181,0.19,63198.0,63197.0,0.079105]
[1727051500384,0.21564957,63198.0,63197.0,0.079105]
[1727051500987,0.21564957,63198.0,63186.0,0.079118]
[1727051500988,0.52547874,63198.0,63184.0,0.26871602]
[1727051501276,0.33547874,63197.0,63196.0,0.079107]
[1727051501985,0.25385132,63197.0,63185.0,0.03602701]
[1727051502288,0.3608,63190.0,63189.0,0.079115]
[1727051502475,0.80465132,63190.0,63189.0,0.079115]
[1727051502873,0.80465132,63190.0,63178.0,0.07625181]
[1727051503082,0.3608,63184.0,63183.0,0.079123]
[1727051503376,0.81486314,63184.0,63183.0,0.079123]
[1727051503782,0.79736575,63184.0,63183.0,0.079123]
[1727051504086,0.59715393,63184.0,63178.0,0.0367104]
[1727051504381,0.56101182,63184.0,63183.0,0.079123]
[1727051504582,0.78193342,63184.0,63183.0,0.079123]
[1727051504768,0.5817216,63184.0,63183.0,0.079123]
[1727051504965,0.78315725,63184.0,63183.0,0.086123]
[1727051505370,0.5827216,63184.0,63183.0,0.086123]
[1727051506075,0.5837216,63184.0,63183.0,0.04485829]
[1727051506573,0.42330062,63184.0,63183.0,0.04485829]
[1727051506972,0.42330062,63184.0,63174.0,0.079133]
[1727051506973,0.58126045,63184.0,63174.0,0.079133]
[1727051507974,0.42330062,63184.0,63174.0,0.079133]
[1727051508286,0.42330062,63184.0,63183.0,0.079123]
[1727051508696,0.06250062,63184.0,63183.0,0.079123]
[1727051508877,0.42330062,63184.0,63183.0,0.079123]
[1727051510082,0.42330062,63184.0,63183.0,1.233046]
[1727051510285,0.08162742,63188.0,63187.0,0.079118]
[1727051510779,0.3608,63193.0,63192.0,0.079112]
[1727051511281,0.3608,63193.0,63179.0,0.01112677]
[1727051511486,0.3608,63184.0,63183.0,0.079123]
[1727051513180,0.3618,63184.0,63183.0,0.080123]
[1727051513787,0.3618,63184.0,63183.0,0.081123]
[1727051514188,0.3628,63184.0,63183.0,0.081123]
[1727051514889,0.3618,63184.0,63183.0,0.081123]
[1727051515083,0.3628,63184.0,63183.0,0.081123]
[1727051515577,0.002,63184.0,63183.0,0.825046]
[1727051515984,0.001,63184.0,63183.0,1.502169]
[1727051516178,0.002,63184.0,63183.0,1.503169]
[1727051516885,0.1648,63196.0,63195.0,0.079108]
[1727051518280,0.31622007,63196.0,63190.0,0.14245924]
[1727051519189,0.31622007,63196.0,63195.0,0.079108]
[1727051519389,0.31622007,63196.0,63195.0,0.158216]
[1727051519588,0.15342007,63196.0,63195.0,0.158216]
[1727051519885,0.15742007,63196.0,63195.0,0.158216]
[1727051521183,0.15742007,63196.0,63195.0,0.079108]
[1727051521686,0.23652707,63196.0,63195.0,0.079108]
[1727051522280,0.15742007,63196.0,63195.0,0.079108]
[1727051523594,0.06737888,63196.0,63195.0,0.079108]
[1727051523780,0.06670749,63196.0,63195.0,0.079108]
[1727051524181,0.06668035,63196.0,63195.0,0.079108]
[1727051524386,0.19668035,63196.0,63195.0,0.079108]
[1727051524581,0.20745568,63196.0,63195.0,0.079108]
[1727051524992,0.07745568,63196.0,63195.0,0.079108]
[1727051525589,0.20745568,63196.0,63195.0,0.079108]
[1727051528201,0.07745568,63196.0,63195.0,0.079108]
[1727051528492,0.06668035,63196.0,63195.0,0.079108]
[1727051531392,0.19668035,63196.0,63195.0,0.079108]
[1727051531700,0.40782838,63196.0,63195.0,0.079108]
[1727051531900,0.27782838,63196.0,63195.0,0.079108]
[1727051532397,0.27782838,63196.0,63195.0,0.158216]
[1727051532695,0.2521793,63196.0,63195.0,0.288216]
[1727051533002,0.2521793,63196.0,63195.0,1.442044]
[1727051533492,0.18725959,63196.0,63195.0,1.362936]
[1727051534602,0.18725959,63196.0,63195.0,1.442044]
[1727051534803,0.2501793,63196.0,63195.0,1.362936]
[1727051535090,0.18525959,63196.0,63195.0,1.363936]
[1727051535487,0.2501793,63196.0,63195.0,1.363936]
[1727051535685,0.2501793,63196.0,63195.0,1.443044]
[1727051536196,0.2461793,63196.0,63195.0,1.443044]
[1727051537096,0.18125959,63196.0,63195.0,1.443044]
[1727051537315,2.7e-07,63196.0,63195.0,1.31973072]
[1727051537488,2.7e-07,63196.0,63195.0,1.39883872]
[1727051538594,0.3608,63208.0,63203.0,0.158196]
[1727051538595,0.24949505,63204.0,63203.0,0.158196]
[1727051538899,0.14475005,63204.0,63203.0,0.158196]
[1727051539102,5e-08,63204.0,63203.0,0.237294]
[1727051539290,0.27763205,63208.0,63207.0,0.237279]
[1727051539489,0.00237397,63210.0,63209.0,0.15818]
[1727051539703,0.04657925,63210.0,63209.0,0.15818]
[1727051540101,0.00237397,63210.0,63209.0,0.15818]
[1727051540400,0.09351926,63216.0,63215.0,0.079083]
[1727051540606,0.04420528,63215.0,63214.0,0.079084]
[1727051540791,0.093454,63217.0,63216.0,0.079082]
[1727051541100,0.3608,63230.0,63229.0,0.079065]
[1727051541303,0.40500528,63230.0,63229.0,0.209065]
[1727051542401,0.3748,63230.0,63229.0,0.28913]
[1727051542603,0.3748,63230.0,63229.0,0.210065]
[1727051542904,0.014,63230.0,63229.0,0.210065]
[1727051543599,0.028,63230.0,63229.0,0.211065]
[1727051544107,0.028,63230.0,63229.0,1.36461]
[1727051544305,0.025,63230.0,63229.0,1.72541]
[1727051544500,0.00764985,63236.0,63235.0,0.079058]
[1727051544700,0.00764985,63236.0,63235.0,0.648916]
[1727051545005,0.00764985,63236.0,63235.0,1.723316]
[1727051545006,8.5e-07,63236.0,63235.0,1.723316]
[1727051545198,8.9e-07,63237.0,63236.0,0.632514]
[1727051545399,8.9e-07,63237.0,63236.0,1.232514]
[1727051545800,8.6e-07,63241.0,63240.0,0.158104]
[1727051546107,3.6e-07,63247.0,63246.0,0.158088]
[1727051546303,3.6e-07,63247.0,63246.0,1.248888]
[1727051546504,3.6e-07,63247.0,63246.0,1.723208]
[1727051546804,0.01005264,63253.0,63247.0,0.47432]
[1727051547108,0.01791142,63259.0,63258.0,0.079029]
[1727051547298,0.04843264,63259.0,63258.0,1.61573615]
[1727051547500,6.4e-07,63259.0,63258.0,1.61573615]
[1727051547898,3.1e-07,63260.0,63258.0,1.61573615]
[1727051548105,3.1e-07,63260.0,63259.0,0.47424]
[1727051548412,3.1e-07,63260.0,63259.0,1.343268]
[1727051549598,3.1e-07,63260.0,63259.0,1.353268]
[1727051549800,3.1e-07,63260.0,63259.0,1.361268]
[1727051550308,3.1e-07,63260.0,63259.0,0.287028]
[1727051550499,3.1e-07,63260.0,63259.0,1.361268]
[1727051550819,3.1e-07,63260.0,63259.0,1.440296]
[1727051551912,2.2e-07,63275.0,63274.0,0.158018]
[1727051552206,6e-07,63279.0,63278.0,0.158008]
[1727051552402,0.02467788,63298.0,63283.0,0.078998]
[1727051552603,0.02467788,63298.0,63283.0,0.268998]
[1727051552604,0.439785,63294.0,63283.0,0.268998]
[1727051552913,0.08693521,63284.0,63283.0,0.078998]
[1727051553598,0.08693521,63284.0,63275.0,0.01108085]
[1727051553599,0.33253975,63284.0,63275.0,0.09008885]
[1727051553800,0.46030183,63283.0,63275.0,0.079008]
[1727051554003,0.46030183,63282.0,63275.0,0.079008]
[1727051554206,0.002,63279.0,63278.0,0.080004]
[1727051554403,0.46230183,63279.0,63278.0,0.270004]
[1727051554606,0.46230183,63279.0,63278.0,1.01211487]
[1727051554906,0.46230142,63279.0,63278.0,1.28111887]
[1727051555316,0.46230142,63279.0,63278.0,0.68111887]
[1727051555817,0.46030142,63279.0,63278.0,0.68111887]
[1727051556015,0.20865057,63279.0,63278.0,0.269004]
[1727051556508,0.20865057,63279.0,63278.0,0.872004]
[1727051557008,0.24631453,63295.0,63282.0,0.078999]
[1727051557211,8e-08,63289.0,63288.0,0.347984]
[1727051557416,0.17863162,63289.0,63288.0,0.347984]
[1727051557616,0.08114797,63289.0,63288.0,0.47707951]
[1727051557802,0.47855593,63289.0,63288.0,0.078992]
[1727051558004,0.15413387,63289.0,63288.0,0.268992]
[1727051558401,0.15413387,63289.0,63288.0,0.868992]
[1727051558609,0.47732379,63289.0,63288.0,0.868992]
[1727051558803,0.3971759,63289.0,63288.0,0.62307184]
[1727051559006,0.46198992,63289.0,63288.0,0.02307184]
[1727051559318,0.70819545,63289.0,63288.0,0.78105584]
[1727051559514,0.49664634,63289.0,63288.0,1.25505584]
[1727051559816,0.00580634,63289.0,63288.0,1.19215341]
[1727051560024,0.05664297,63289.0,63288.0,1.20515341]
[1727051560204,9.7e-07,63289.0,63288.0,1.64494541]
[1727051560404,9.7e-07,63289.0,63288.0,1.8918352]
[1727051560613,9.7e-07,63289.0,63288.0,1.9838272]
[1727051560916,9.7e-07,63289.0,63288.0,1.9048352]
[1727051561616,0.34000855,63306.0,63297.0,0.07898]
[1727051561819,0.13666379,63305.0,63303.0,0.13963075]
[1727051562136,0.1791,63310.0,63306.0,0.078969]
[1727051562137,0.14986937,63307.0,63306.0,0.078969]
[1727051562316,0.01320558,63307.0,63306.0,0.71711257]
[1727051562523,0.01320558,63307.0,63306.0,0.85673925]
[1727051562708,0.61908998,63317.0,63314.0,0.078959]
[1727051562903,0.00396096,63321.0,63320.0,0.078952]
[1727051563133,0.27772004,63321.0,63320.0,0.34576099]
[1727051563309,0.14062475,63321.0,63320.0,0.53576099]
[1727051563507,0.01401674,63336.0,63335.0,0.078933]
[1727051563708,0.01401674,63336.0,63335.0,0.53500879]
[1727051563916,0.01401674,63336.0,63335.0,1.60868879]
[1727051564609,0.00574019,63340.0,63339.0,0.078928]
[1727051564815,0.00511862,63358.0,63348.0,0.078917]
[1727051565012,0.00511862,63358.0,63348.0,0.62687579]
[1727051565219,0.47356,63348.0,63343.0,0.07742525]
[1727051565520,0.19,63344.0,63327.0,0.079863]
[1727051565712,0.3608,63346.0,63339.0,0.04646649]
[1727051565912,0.078922,63344.0,63340.0,0.04646649]
[1727051566117,0.078922,63344.0,63341.0,0.04646649]
[1727051566321,0.078922,63344.0,63342.0,0.04646649]
[1727051566519,0.3608,63346.0,63343.0,0.014]
[1727051566710,0.078921,63345.0,63343.0,0.014]
[1727051567113,0.078921,63345.0,63335.0,0.014]
[1727051567114,0.078931,63337.0,63335.0,0.014]
[1727051567319,0.3608,63336.0,63335.0,0.014]
[1727051567613,0.3608,63336.0,63334.0,0.078933]
[1727051567822,0.3608,63336.0,63320.0,0.19]
[1727051568131,0.1774,63335.0,63329.0,0.07894]
[1727051568418,0.078943,63328.0,63312.0,0.1779]
[1727051568619,0.078943,63328.0,63313.0,0.3608]
[1727051568814,0.36200001,63330.0,63315.0,0.19]
[1727051569123,0.3608,63330.0,63321.0,0.3608]
[1727051569329,0.3608,63330.0,63329.0,0.014]
[1727051570029,0.001,63330.0,63329.0,0.07894]
[1727051570708,0.001,63330.0,63329.0,0.09294]
[1727051571526,0.3618,63330.0,63329.0,0.014]
[1727051571732,1.43552,63330.0,63322.0,0.014]
[1727051571914,0.5508,63323.0,63322.0,0.014]
[1727051572111,0.5508,63323.0,63308.0,0.08133536]
[1727051572426,0.3608,63312.0,63308.0,0.08133536]
[1727051572822,0.1787,63311.0,63308.0,0.08133536]
[1727051573928,0.00208,63312.0,63310.0,0.629764]
[1727051574129,0.001,63312.0,63310.0,0.801764]
[1727051574427,0.1645,63322.0,63320.0,0.07895]
[1727051575521,0.1645,63322.0,63311.0,0.3711]
[1727051576117,0.1655,63322.0,63317.0,0.078955]
[1727051576521,0.3371,63322.0,63317.0,0.078955]
[1727051576719,0.3608,63365.0,63335.0,0.078933]
[1727051577036,0.19,63341.0,63335.0,0.3608]
[1727051577324,0.19,63341.0,63325.0,0.19]
[1727051577325,0.3608,63340.0,63325.0,0.19]
[1727051577530,0.1822,63341.0,63339.0,0.078927]
[1727051578820,0.47364,63340.0,63335.0,0.002]
[1727051579029,0.3608,63338.0,63335.0,0.002]
[1727051579529,0.3608,63338.0,63325.0,0.19]
[1727051579530,0.1832,63341.0,63339.0,0.078928]
[1727051579725,0.1832,63341.0,63339.0,0.088928]
[1727051579919,0.001,63340.0,63339.0,0.088928]
[1727051580223,0.12791945,63341.0,63339.0,0.33896088]
[1727051580428,0.12791945,63341.0,63339.0,0.32896088]
[1727051581622,0.3538,63348.0,63347.0,0.078918]
[1727051581830,0.1812,63348.0,63347.0,0.078918]
[1727051582023,0.01338377,63349.0,63347.0,0.368918]
[1727051582228,0.01338377,63349.0,63348.0,0.3608]
[1727051582428,0.01338377,63349.0,63347.0,0.078918]
[1727051582727,0.48694377,63349.0,63347.0,0.081918]
[1727051582918,0.48694377,63349.0,63347.0,0.003]
[1727051583229,0.56585977,63349.0,63342.0,0.078924]
[1727051583437,0.1797,63348.0,63342.0,0.078924]
[1727051583621,0.01338377,63349.0,63347.0,0.078918]
[1727051584128,0.01338377,63349.0,63347.0,0.085918]
[1727051584724,0.01338377,63349.0,63348.0,0.078917]
[1727051585346,0.06675757,63356.0,63348.0,0.40522543]
[1727051585627,0.06675757,63356.0,63355.0,0.078908]
[1727051585828,0.06675757,63356.0,63355.0,0.32730486]
[1727051587133,0.06675757,63356.0,63355.0,0.32560581]
[1727051587331,0.06675757,63356.0,63355.0,0.65946777]
[1727051587631,0.1875,63357.0,63356.0,0.078907]
[1727051587815,0.1875,63357.0,63356.0,0.4813286]
[1727051588129,0.1875,63357.0,63356.0,0.65849184]
[1727051588426,0.1875,63357.0,63356.0,0.4813286]
[1727051588636,0.1875,63357.0,63356.0,0.24669781]
[1727051588637,1.26102,63357.0,63356.0,0.24669781]
[1727051588927,0.078909,63354.0,63352.0,0.109614]
[1727051589114,0.078911,63353.0,63352.0,0.109614]
[1727051589322,0.83432,63355.0,63345.0,0.109614]
[1727051589529,0.3608,63349.0,63348.0,0.078917]
[1727051590032,1.43436,63349.0,63348.0,0.078917]
[1727051590426,0.37170886,63355.0,63354.0,0.078909]
[1727051590823,0.07891,63354.0,63351.0,0.10977175]
[1727051591024,0.37278886,63355.0,63352.0,0.10977175]
[1727051591222,0.078918,63347.0,63345.0,0.07892]
[1727051591431,0.615719,63346.0,63345.0,0.07892]
[1727051591729,1.1368,63346.0,63331.0,0.3608]
[1727051591921,0.3608,63337.0,63328.0,0.1755]
[1727051592116,0.3608,63338.0,63337.0,0.078929]
[1727051592343,0.3608,63338.0,63328.0,0.17642]
[1727051592527,0.078924,63342.0,63328.0,0.17642]
[1727051592724,0.3608,63338.0,63328.0,0.17642]
[1727051592928,0.3608,63337.0,63328.0,0.17642]
[1727051593133,0.3608,63337.0,63331.0,0.014]
[1727051593532,0.3608,63337.0,63336.0,0.078931]
[1727051594929,0.276924,63337.0,63336.0,0.157863]
[1727051595123,0.3608,63346.0,63345.0,0.07892]
[1727051596231,0.3608,63356.0,63355.0,0.078908]
[1727051597620,0.3608,63356.0,63355.0,0.083908]
[1727051598236,0.1721,63357.0,63356.0,0.078907]
[1727051599033,0.00236869,63360.0,63357.0,0.078906]
[1727051599229,0.06225989,63362.0,63357.0,0.12963923]
[1727051599432,0.05162755,63362.0,63358.0,0.12963923]
[1727051599630,0.05162755,63362.0,63359.0,0.20854123]
[1727051599830,0.05162755,63362.0,63360.0,0.12963923]
[1727051600027,0.52510755,63362.0,63361.0,0.20856502]
[1727051600230,0.184,63369.0,63362.0,0.078899]